lending/lending_fUSD_20250224
["ID","MTS","AMOUNT","RATE_DAILY","PERIOD"]
[354244002,1740363033831,-500.0,0.00016438,2]
[354244004,1740363033841,-528.02,0.00016438,2]
[354244006,1740363033851,-271.69281034,0.00016438,2]
[354244008,1740363033861,-315.6430973,0.00016438,2]
[354244011,1740363033871,-501.03,0.00016438,2]
[354244012,1740363033881,-579.23,0.00016438,2]
[354244015,1740363033891,-500.0,0.00016438,2]
[354244017,1740363033900,-500.0,0.00016438,2]
[354244018,1740363033910,-507.43,0.00016438,2]
[354244020,1740363033920,-500.0,0.00016438,2]
[354244023,1740363033930,-500.0,0.00016438,2]
[354244024,1740363033939,-500.0,0.00016438,2]
[354244026,1740363033948,-500.0,0.00016438,2]
[354244028,1740363033958,-712.28,0.00016438,2]
[354244030,1740363033968,-500.0,0.00016438,2]
[354244032,1740363033978,-500.0,0.00016438,2]
[354244034,1740363033987,-500.0,0.00016438,2]
[354244036,1740363033996,-500.0,0.00016438,2]
[354244038,1740363034006,-723.91,0.00016438,2]
[354244041,1740363034016,-500.0,0.00016438,2]
[354244043,1740363034026,-664.48,0.00016438,2]
[354244044,1740363034035,-500.0,0.00016438,2]
[354244047,1740363034044,-500.0,0.00016438,2]
[354244049,1740363034055,-602.53,0.00016438,2]
[354244050,1740363034064,-500.0,0.00016438,2]
[354244053,1740363034074,-500.0,0.00016438,2]
[354244055,1740363034084,-500.0,0.00016438,2]
[354244056,1740363034094,-500.0,0.00016438,2]
[354244058,1740363034104,-500.0,0.00016438,2]
[354244060,1740363034114,-500.0,0.00016438,2]
[354244062,1740363034123,-500.0,0.00016438,2]
[354244064,1740363034132,-500.0,0.00016438,2]
[354244066,1740363034141,-500.0,0.00016438,2]
[354244068,1740363034151,-613.17,0.00016438,2]
[354244070,1740363034160,-500.0,0.00016438,2]
[354244072,1740363034170,-500.0,0.00016438,2]
[354244074,1740363034180,-1046.78,0.00016438,2]
[354244076,1740363034189,-534.07,0.00016438,2]
[354244078,1740363034199,-500.0,0.00016438,2]
[354244080,1740363034208,-200.243438,0.00016438,2]
[354244082,1740363034218,-500.0,0.00016438,2]
[354244084,1740363034227,-792.81,0.00016438,2]
[354244086,1740363034236,-500.0,0.00016438,2]
[354244088,1740363034245,-500.0,0.00016438,2]
[354244090,1740363034255,-500.0,0.00016438,2]
[354244092,1740363034264,-500.0,0.00016438,2]
[354244094,1740363034273,-500.0,0.00016438,2]
[354244096,1740363034283,-648.09834845,0.00016438,2]
[354244098,1740363034293,-500.0,0.00016438,2]
[354244100,1740363034302,-500.0,0.00016438,2]
[354244102,1740363034311,-151.208743,0.00016438,2]
[354244104,1740363034320,-500.0,0.00016438,2]
[354244106,1740363034329,-793.97,0.00016438,2]
[354244108,1740363034339,-669.31,0.00016438,2]
[354244110,1740363034349,-863.13,0.00016438,2]
[354244112,1740363034359,-151.0,0.00016438,2]
[354244114,1740363034369,-550.7,0.00016438,2]
[354244116,1740363034378,-500.0,0.00016438,2]
[354244118,1740363034388,-500.0,0.00016438,2]
[354244120,1740363034398,-1108.72,0.00016438,2]
[354244122,1740363034412,-500.0,0.00016438,2]
[354244124,1740363034425,-500.0,0.00016438,2]
[354244126,1740363034435,-500.0,0.00016438,2]
[354244128,1740363034446,-206.52918558,0.00016438,2]
[354244130,1740363034456,-500.0,0.00016438,2]
[354244132,1740363034468,-500.0,0.00016438,2]
[354244134,1740363034479,-500.0,0.00016438,2]
[354244136,1740363034490,-500.0,0.00016438,2]
[354244138,1740363034501,-260.475512,0.00016438,2]
[354244140,1740363034512,-500.0,0.00016438,2]
[354244142,1740363034522,-498.54081548,0.00016438,2]
[354244144,1740363034532,-1246.28,0.00016438,2]
[354244146,1740363034542,-29.80400807,0.00016438,2]
[354244149,1740363034619,-470.19599193,0.00016438,2]
[354244150,1740363034629,-518.27200807,0.00016438,2]
[354244151,1740363034650,-71.60799193,0.00016438,2]
[354244153,1740363034659,-1841.59,0.00016438,2]
[354244154,1740363034669,-500.0,0.00016438,2]
[354244155,1740363034678,-562.94,0.00016438,2]
[354244157,1740363034688,-404.41176478,0.00016438,2]
[354244159,1740363034701,-95.58823522,0.00016438,2]
[354244162,1740363034711,-498.39191035,0.00016438,2]
[354244163,1740363034721,-500.0,0.00016438,2]
[354244165,1740363034731,-500.0,0.00016438,2]
[354244168,1740363034740,-500.0,0.00016438,2]
[354244170,1740363034750,-500.0,0.00016438,2]
[354244172,1740363034760,-1086.46,0.00016438,2]
[354244174,1740363034770,-500.0,0.00016438,2]
[354244176,1740363034779,-201.45406538,0.00016438,2]
[354244178,1740363034791,-298.54593462,0.00016438,2]
[354244180,1740363034801,-1419.12,0.00016438,2]
[354244182,1740363034810,-500.0,0.00016438,2]
[354244184,1740363034819,-512.52,0.00016438,2]
[354244185,1740363034829,-500.0,0.00016438,2]
[354244187,1740363034840,-500.0,0.00016438,2]
[354244189,1740363034849,-726.39,0.00016438,2]
[354244191,1740363034859,-500.0,0.00016438,2]
[354244193,1740363034868,-500.0,0.00016438,2]
[354244195,1740363034878,-500.0,0.00016438,2]
[354244197,1740363034888,-332.49406538,0.00016438,2]
[354244200,1740363034900,-167.50593462,0.00016438,2]
[354244202,1740363034909,-503.21634334,0.00016438,2]
[354244204,1740363034918,-500.0,0.00016438,2]
[354244206,1740363034927,-455.21002154,0.00016438,2]
[354244208,1740363034937,-1292.05,0.00016438,2]
[354244209,1740363034946,-153.7227005,0.00016438,2]
[354244212,1740363034957,-710.8972995,0.00016438,2]
[354244214,1740363034967,-500.0,0.00016438,2]
[354244216,1740363034976,-500.0,0.00016438,2]
[354244218,1740363034985,-660.57,0.00016438,2]
[354244220,1740363034995,-500.0,0.00016438,2]
[354244222,1740363035004,-500.0,0.00016438,2]
[354244224,1740363035014,-145.78270064,0.00016438,2]
[354244226,1740363035025,-6.76766536,0.00016438,2]
[354244228,1740363035035,-502.78109476,0.00016438,2]
[354244230,1740363035044,-500.0,0.00016438,2]
[354244232,1740363035053,-501.84072001,0.00016438,2]
[354244234,1740363035063,-744.67,0.00016438,2]
[354244236,1740363035072,-245.19446056,0.00016438,2]
[354244238,1740363035084,-293.49962424,0.00016438,2]
[354244240,1740363035103,-320.8459152,0.00016438,2]
[354244242,1740363035112,-500.0,0.00016438,2]
[354244245,1740363035122,-500.0,0.00016438,2]
[354244247,1740363035132,-707.73,0.00016438,2]
[354244249,1740363035141,-500.93888346,0.00016438,2]
[354244251,1740363035150,-498.63983984,0.00016438,2]
[354244253,1740363035160,-500.0,0.00016438,2]
[354244255,1740363035169,-711.62,0.00016438,2]
[354244257,1740363035178,-553.3,0.00016438,2]
[354244259,1740363035188,-511.65740833,0.00016438,2]
[354244261,1740363035198,-676.94,0.00016438,2]
[354244262,1740363035207,-500.0,0.00016438,2]
[354244264,1740363035216,-504.2,0.00016438,2]
[354244266,1740363035226,-606.92787738,0.00016438,2]
[354244268,1740363035236,-500.0,0.00016438,2]
[354244270,1740363035250,-502.80849755,0.00016438,2]
[354244272,1740363035259,-500.0,0.00016438,2]
[354244274,1740363035268,-930.64,0.00016438,2]
[354244276,1740363035277,-278.42793738,0.00016438,2]
[354244278,1740363035287,-208.58831581,0.00016438,2]
[354244280,1740363035296,-1091.84,0.00016438,2]
[354244282,1740363035305,-501.80410394,0.00016438,2]
[354244284,1740363035314,-956.72,0.00016438,2]
[354244286,1740363035323,-504.37688719,0.00016438,2]
[354244288,1740363035333,-513.82202878,0.00016438,2]
[354244290,1740363035343,-498.48171437,0.00016438,2]
[354244292,1740363035353,-500.0,0.00016438,2]
[354244294,1740363035362,-500.0,0.00016438,2]
[354244296,1740363035372,-1322.01,0.00016438,2]
[354244298,1740363035381,-493.87058733,0.00016438,2]
[354244300,1740363035391,-503.55340743,0.00016438,2]
[354244302,1740363035400,-500.0,0.00016438,2]
[354244304,1740363035409,-988.29,0.00016438,2]
[354244306,1740363035418,-556.18,0.00016438,2]
[354244308,1740363035428,-500.0,0.00016438,2]
[354244310,1740363035438,-505.86267458,0.00016438,2]
[354244312,1740363035447,-617.47,0.00016438,2]
[354244314,1740363035457,-500.0,0.00016438,2]
[354244316,1740363035468,-500.0,0.00016438,2]
[354244318,1740363035477,-1134.12,0.00016438,2]
[354244320,1740363035487,-151.0,0.00016438,2]
[354244322,1740363035495,-523.03,0.00016438,2]
[354244324,1740363035504,-500.0,0.00016438,2]
[354244326,1740363035514,-671.81,0.00016438,2]
[354244328,1740363035523,-497.91264782,0.00016438,2]
[354244330,1740363035532,-500.0,0.00016438,2]
[354244332,1740363035542,-500.0,0.00016438,2]
[354244334,1740363035552,-500.0,0.00016438,2]
[354244337,1740363035561,-500.0,0.00016438,2]
[354244339,1740363035573,-522.82,0.00016438,2]
[354244341,1740363035583,-500.0,0.00016438,2]
[354244342,1740363035593,-716.82,0.00016438,2]
[354244344,1740363035602,-510.06,0.00016438,2]
[354244346,1740363035611,-631.45733567,0.00016438,2]
[354244348,1740363035621,-500.0,0.00016438,2]
[354244350,1740363035630,-500.0,0.00016438,2]
[354244352,1740363035639,-500.0,0.00016438,2]
[354244354,1740363035649,-500.0,0.00016438,2]
[354244356,1740363035658,-511.34271825,0.00016438,2]
[354244358,1740363035667,-826.67,0.00016438,2]
[354244360,1740363035676,-500.0,0.00016438,2]
[354244362,1740363035686,-503.89732703,0.00016438,2]
[354244364,1740363035695,-502.26288396,0.00016438,2]
[354244366,1740363035704,-138.42605166,0.00016438,2]
[354244369,1740363035718,-798.74394834,0.00016438,2]
[354244371,1740363035727,-500.0,0.00016438,2]
[354244373,1740363035736,-153.125888,0.00016438,2]
[354244375,1740363035746,-500.0,0.00016438,2]
[354244377,1740363035755,-652.16,0.00016438,2]
[354244378,1740363035764,-96.75392571,0.00016438,2]
[354244381,1740363035776,-405.59774099,0.00016438,2]
[354244383,1740363035784,-515.56988461,0.00016438,2]
[354244385,1740363035794,-500.0,0.00016438,2]
[354244387,1740363035803,-745.2,0.00016438,2]
[354244389,1740363035813,-503.28252473,0.00016438,2]
[354244391,1740363035825,-500.0,0.00016438,2]
[354244393,1740363035833,-835.19,0.00016438,2]
[354244395,1740363035844,-500.0,0.00016438,2]
[354244397,1740363035853,-792.18,0.00016438,2]
[354244399,1740363035863,-500.0,0.00016438,2]
[354244401,1740363035873,-500.0,0.00016438,2]
[354244403,1740363035882,-625.69,0.00016438,2]
[354244405,1740363035891,-500.0,0.00016438,2]
[354244407,1740363035900,-500.0,0.00016438,2]
[354244409,1740363035909,-500.0,0.00016438,2]
[354244411,1740363035918,-500.0,0.00016438,2]
[354244413,1740363035927,-723.56,0.00016438,2]
[354244414,1740363035937,-500.0,0.00016438,2]
[354244416,1740363035946,-1095.12,0.00016438,2]
[354244418,1740363035955,-500.0,0.00016438,2]
[354244420,1740363035965,-500.0,0.00016438,2]
[354244422,1740363035975,-500.0,0.00016438,2]
[354244424,1740363035984,-500.0,0.00016438,2]
[354244426,1740363035993,-509.38016089,0.00016438,2]
[354244428,1740363036003,-500.0,0.00016438,2]
[354244430,1740363036012,-666.69,0.00016438,2]
[354244432,1740363036021,-500.0,0.00016438,2]
[354244434,1740363036030,-539.4,0.00016438,2]
[354244436,1740363036039,-500.0,0.00016438,2]
[354244438,1740363036048,-255.00548546,0.00016438,2]
[354244441,1740363036061,-244.99451454,0.00016438,2]
[354244443,1740363036070,-500.0,0.00016438,2]
[354244445,1740363036080,-500.0,0.00016438,2]
[354244447,1740363036090,-500.0,0.00016438,2]
[354244449,1740363036099,-500.0,0.00016438,2]
[354244451,1740363036108,-620.94,0.00016438,2]
[354244453,1740363036118,-133.76691306,0.00016438,2]
[354244455,1740363036129,-450.41308694,0.00016438,2]
[354244457,1740363036138,-979.55,0.00016438,2]
[354244459,1740363036147,-4.28305264,0.00016438,2]
[354244461,1740363036158,-571.35694736,0.00016438,2]
[354244463,1740363036167,-500.0,0.00016438,2]
[354244465,1740363036176,-500.0,0.00016438,2]
[354244467,1740363036185,-459.69122468,0.00016438,2]
[354244469,1740363036194,-500.0,0.00016438,2]
[354244471,1740363036203,-1036.05,0.00016438,2]
[354244473,1740363036212,-500.0,0.00016438,2]
[354244475,1740363036222,-376.35215646,0.00016438,2]
[354244477,1740363036230,-151.0,0.00016438,2]
[354244479,1740363036239,-649.27,0.00016438,2]
[354244481,1740363036248,-500.0,0.00016438,2]
[354244483,1740363036257,-500.0,0.00016438,2]
[354244485,1740363036267,-500.0,0.00016438,2]
[354244487,1740363036276,-809.35,0.00016438,2]
[354244489,1740363036285,-500.0,0.00016438,2]
[354244491,1740363036294,-500.0,0.00016438,2]
[354244493,1740363036303,-500.0,0.00016438,2]
[354244495,1740363036313,-429.98757651,0.00016438,2]
[354244497,1740363036322,-500.0,0.00016438,2]
[354244499,1740363036332,-1286.52,0.00016438,2]
[354244501,1740363036341,-500.0,0.00016438,2]
[354244503,1740363036350,-215.33274814,0.00016438,2]
[354244505,1740363036359,-1245.53,0.00016438,2]
[354244507,1740363036369,-334.18693029,0.00016438,2]
[354244509,1740363036378,-544.61,0.00016438,2]
[354244511,1740363036387,-500.0,0.00016438,2]
[354244513,1740363036396,-500.0,0.00016438,2]
[354244515,1740363036406,-614.16,0.00016438,2]
[354244517,1740363036415,-500.0,0.00016438,2]
[354244519,1740363036424,-500.0,0.00016438,2]
[354244521,1740363036433,-500.0,0.00016438,2]
[354244523,1740363036442,-512.74556806,0.00016438,2]
[354244525,1740363036451,-500.0,0.00016438,2]
[354244527,1740363036460,-500.0,0.00016438,2]
[354244529,1740363036469,-725.25657124,0.00016438,2]
[354244563,1740363036793,-341.46342876,0.00016438,2]
[354244565,1740363036803,-686.64,0.00016438,2]
[354244567,1740363036812,-500.0,0.00016438,2]
[354244569,1740363036821,-500.0,0.00016438,2]
[354244571,1740363036830,-502.06,0.00016438,2]
[354244573,1740363036840,-673.75,0.00016438,2]
[354244575,1740363036850,-120.25828273,0.00016438,2]
[354244577,1740363036861,-272.47,0.00016438,2]
[354244580,1740363036883,-107.27171727,0.00016438,2]
[354244582,1740363036892,-500.0,0.00016438,2]
[354244604,1740363037120,-549.82,0.00016438,2]
[354244605,1740363037134,-500.0,0.00016438,2]
[354244606,1740363037143,-500.0,0.00016438,2]
[354244607,1740363037152,-732.43,0.00016438,2]
[354244608,1740363037161,-500.0,0.00016438,2]
[354244609,1740363037170,-717.01,0.00016438,2]
[354244611,1740363037179,-500.0,0.00016438,2]
[354244613,1740363037189,-570.96,0.00016438,2]
[354244615,1740363037198,-500.0,0.00016438,2]
[354244617,1740363037207,-502.85476427,0.00016438,2]
[354244619,1740363037217,-500.0,0.00016438,2]
[354244621,1740363037226,-500.0,0.00016438,2]
[354244623,1740363037235,-1042.97,0.00016438,2]
[354244625,1740363037244,-500.0,0.00016438,2]
[354244627,1740363037253,-500.0,0.00016438,2]
[354244629,1740363037262,-510.5632751,0.00016438,2]
[354244631,1740363037271,-504.50571482,0.00016438,2]
[354244633,1740363037280,-500.0,0.00016438,2]
[354244635,1740363037290,-500.0,0.00016438,2]
[354244637,1740363037299,-630.22,0.00016438,2]
[354244639,1740363037308,-501.49828968,0.00016438,2]
[354244641,1740363037317,-924.18,0.00016438,2]
[354244643,1740363037326,-505.23191872,0.00016438,2]
[354244645,1740363037335,-501.84673185,0.00016438,2]
[354244647,1740363037345,-500.0,0.00016438,2]
[354244649,1740363037354,-504.14702166,0.00016438,2]
[354244651,1740363037363,-1022.64,0.00016438,2]
[354244653,1740363037372,-500.0,0.00016438,2]
[354244655,1740363037381,-271.64783034,0.00016438,2]
[354244657,1740363037390,-500.0,0.00016438,2]
[354244659,1740363037400,-710.14,0.00016438,2]
[354244661,1740363037409,-500.0,0.00016438,2]
[354244662,1740363037419,-535.51,0.00016438,2]
[354244664,1740363037427,-503.87594268,0.00016438,2]
[354244666,1740363037437,-500.0,0.00016438,2]
[354244668,1740363037446,-500.0,0.00016438,2]
[354244670,1740363037455,-500.0,0.00016438,2]
[354244672,1740363037464,-504.4846262,0.00016438,2]
[354244674,1740363037473,-502.11978072,0.00016438,2]
[354244676,1740363037482,-500.0,0.00016438,2]
[354244678,1740363037491,-500.0,0.00016438,2]
[354244680,1740363037501,-2132.42,0.00016438,2]
[354244682,1740363037511,-500.0,0.00016438,2]
[354244684,1740363037519,-515.04,0.00016438,2]
[354244686,1740363037529,-500.0,0.00016438,2]
[354244688,1740363037538,-504.10991221,0.00016438,2]
[354244690,1740363037547,-500.0,0.00016438,2]
[354244692,1740363037556,-501.96207925,0.00016438,2]
[354244694,1740363037566,-887.96,0.00016438,2]
[354244696,1740363037578,-500.0,0.00016438,2]
[354244698,1740363037587,-500.0,0.00016438,2]
[354244700,1740363037597,-999.05,0.00016438,2]
[354244702,1740363037607,-953.25,0.00016438,2]
[354244704,1740363037617,-523.12,0.00016438,2]
[354244706,1740363037626,-502.4288123,0.00016438,2]
[354244708,1740363037635,-500.0,0.00016438,2]
[354244710,1740363037644,-500.0,0.00016438,2]
[354244712,1740363037656,-571.21,0.00016438,2]
[354244714,1740363037665,-500.0,0.00016438,2]
[354244716,1740363037674,-509.02955505,0.00016438,2]
[354244718,1740363037683,-500.0,0.00016438,2]
[354244720,1740363037692,-500.0,0.00016438,2]
[354244722,1740363037701,-500.0,0.00016438,2]
[354244724,1740363037711,-500.0,0.00016438,2]
[354244726,1740363037721,-699.96,0.00016438,2]
[354244728,1740363037732,-307.4089044,0.00016438,2]
[354244731,1740363037743,-500.0,0.00016438,2]
[354244733,1740363037752,-843.86,0.00016438,2]
[354244735,1740363037761,-856.53,0.00016438,2]
[354244737,1740363037774,-500.0,0.00016438,2]
[354244739,1740363037784,-568.96,0.00016438,2]
[354244742,1740363037794,-217.59356733,0.00016438,2]
[354244744,1740363037803,-503.37580324,0.00016438,2]
[354244746,1740363037813,-500.0,0.00016438,2]
[354244749,1740363037822,-514.92,0.00016438,2]
[354244751,1740363037831,-503.14939779,0.00016438,2]
[354244753,1740363037842,-1288.17,0.00016438,2]
[354244756,1740363037853,-603.36,0.00016438,2]
[354244759,1740363037863,-500.0,0.00016438,2]
[354244761,1740363037872,-884.41,0.00016438,2]
[354244763,1740363037881,-568.71,0.00016438,2]
[354244765,1740363037890,-500.0,0.00016438,2]
[354244766,1740363037900,-500.0,0.00016438,2]
[354244769,1740363037909,-500.0,0.00016438,2]
[354244770,1740363037919,-500.0,0.00016438,2]
[354244773,1740363037928,-874.87,0.00016438,2]
[354244774,1740363037938,-502.98281323,0.00016438,2]
[354244775,1740363037947,-500.0,0.00016438,2]
[354244776,1740363037957,-500.0,0.00016438,2]
[354244777,1740363037966,-501.07093533,0.00016438,2]
[354244778,1740363037976,-521.14483912,0.00016438,2]
[354244779,1740363037985,-872.96,0.00016438,2]
[354244781,1740363037994,-650.66,0.00016438,2]
[354244782,1740363038004,-685.87,0.00016438,2]
[354244783,1740363038013,-500.0,0.00016438,2]
[354244784,1740363038023,-502.69152269,0.00016438,2]
[354244785,1740363038032,-500.0,0.00016438,2]
[354244786,1740363038041,-500.0,0.00016438,2]
[354244787,1740363038051,-500.0,0.00016438,2]
[354244788,1740363038060,-500.0,0.00016438,2]
[354244789,1740363038069,-500.0,0.00016438,2]
[354244790,1740363038078,-1302.51,0.00016438,2]
[354244791,1740363038087,-502.25054469,0.00016438,2]
[354244792,1740363038097,-503.70957943,0.00016438,2]
[354244793,1740363038107,-540.3,0.00016438,2]
[354244794,1740363038116,-500.0,0.00016438,2]
[354244795,1740363038125,-500.0,0.00016438,2]
[354244796,1740363038134,-670.91,0.00016438,2]
[354244797,1740363038143,-1081.14,0.00016438,2]
[354244798,1740363038152,-151.781349,0.00016438,2]
[354244799,1740363038161,-501.74274652,0.00016438,2]
[354244800,1740363038171,-1413.73,0.00016438,2]
[354244801,1740363038180,-502.19019422,0.00016438,2]
[354244802,1740363038190,-500.0,0.00016438,2]
[354244803,1740363038199,-622.62,0.00016438,2]
[354244804,1740363038209,-387.86340806,0.00016438,2]
[354244805,1740363038218,-900.82,0.00016438,2]
[354244806,1740363038227,-550.94031138,0.00016438,2]
[354244807,1740363038237,-500.0,0.00016438,2]
[354244808,1740363038246,-500.0,0.00016438,2]
[354244809,1740363038255,-4000.0,0.00016438,2]
[354244810,1740363038264,-151.0,0.00016438,2]
[354244811,1740363038274,-500.0,0.00016438,2]
[354244812,1740363038283,-500.0,0.00016438,2]
[354244813,1740363038292,-1043.63,0.00016438,2]
[354244814,1740363038302,-1066.43,0.00016438,2]
[354244815,1740363038311,-515.25636015,0.00016438,2]
[354244816,1740363038321,-500.0,0.00016438,2]
[354244817,1740363038332,-500.0,0.00016438,2]
[354244818,1740363038343,-501.55862855,0.00016438,2]
[354244819,1740363038353,-767.16,0.00016438,2]
[354244820,1740363038362,-613.02,0.00016438,2]
[354244821,1740363038372,-500.0,0.00016438,2]
[354244822,1740363038381,-1293.53,0.00016438,2]
[354244824,1740363038391,-1940.62,0.00016438,2]
[354244826,1740363038401,-669.81,0.00016438,2]
[354244828,1740363038411,-2065.52,0.00016438,2]
[354244830,1740363038421,-502.03264513,0.00016438,2]
[354244832,1740363038431,-2700.93,0.00016438,2]
[354244834,1740363038440,-2090.11,0.00016438,2]
[354244836,1740363038450,-1000.0,0.00016438,2]
[354244838,1740363038459,-1074.47,0.00016438,2]
[354244840,1740363038468,-502.58384652,0.00016438,2]
[354244842,1740363038478,-612.86,0.00016438,2]
[354244844,1740363038487,-500.0,0.00016438,2]
[354244846,1740363038497,-704.14,0.00016438,2]
[354244848,1740363038507,-1120.24,0.00016438,2]
[354244850,1740363038516,-500.0,0.00016438,2]
[354244853,1740363038526,-501.35413217,0.00016438,2]
[354244856,1740363038535,-502.55428372,0.00016438,2]
[354244859,1740363038544,-7300.58,0.00016438,2]
[354244861,1740363038553,-501.52166606,0.00016438,2]
[354244863,1740363038562,-500.0,0.00016438,2]
[354244865,1740363038575,-502.31612492,0.00016438,2]
[354244868,1740363038585,-503.36101579,0.00016438,2]
[354244871,1740363038595,-2800.5,0.00016438,2]
[354244874,1740363038604,-460.0,0.00016438,2]
[354244877,1740363038613,-1202.6,0.00016438,2]
[354244880,1740363038623,-981.15,0.00016438,2]
[354244882,1740363038631,-501.76497024,0.00016438,2]
[354244884,1740363038640,-502.98149402,0.00016438,2]
[354244886,1740363038652,-924.1,0.00016438,2]
[354244888,1740363038661,-501.7413288,0.00016438,2]
[354244890,1740363038671,-500.0,0.00016438,2]
[354244892,1740363038680,-2280.35,0.00016438,2]
[354244894,1740363038689,-956.72,0.00016438,2]
[354244896,1740363038699,-501.60649149,0.00016438,2]
[354244898,1740363038708,-500.0,0.00016438,2]
[354244900,1740363038718,-500.0,0.00016438,2]
[354244902,1740363038728,-502.18377064,0.00016438,2]
[354244904,1740363038739,-1301.97,0.00016438,2]
[354244906,1740363038748,-1015.65,0.00016438,2]
[354244908,1740363038758,-500.0,0.00016438,2]
[354244910,1740363038767,-2836.32,0.00016438,2]
[354244913,1740363038777,-500.0,0.00016438,2]
[354244915,1740363038786,-711.33,0.00016438,2]
[354244917,1740363038795,-501.56141855,0.00016438,2]
[354244919,1740363038805,-490.0,0.00016438,2]
[354244921,1740363038814,-625.439325,0.00016438,2]
[354244923,1740363038823,-501.79115842,0.00016438,2]
[354244925,1740363038832,-2478.45,0.00016438,2]
[354244927,1740363038842,-2116.37,0.00016438,2]
[354244929,1740363038851,-502.65787504,0.00016438,2]
[354244930,1740363038860,-500.0,0.00016438,2]
[354244932,1740363038870,-287.94172343,0.00016438,2]
[354244935,1740363038887,-212.05827657,0.00016438,2]
[354244937,1740363038896,-368.93796974,0.00016438,2]
[354244940,1740363038915,-131.06203026,0.00016438,2]
[354244942,1740363038924,-500.0,0.00016438,2]
[354244944,1740363038933,-714.79,0.00016438,2]
[354244946,1740363038942,-1139.35,0.00016438,2]
[354244948,1740363038952,-1120.04,0.00016438,2]
[354244950,1740363038961,-1782.32,0.00016438,2]
[354244952,1740363038970,-4352.84,0.00016438,2]
[354244954,1740363038979,-1464.51246287,0.00016438,2]
[354244956,1740363038991,-1181.39753713,0.00016438,2]
[354244958,1740363039000,-644.48,0.00016438,2]
[354244960,1740363039009,-704.74,0.00016438,2]
[354244962,1740363039018,-500.0,0.00016438,2]
[354244964,1740363039028,-279.56614883,0.00016438,2]
[354244966,1740363039039,-221.53107987,0.00016438,2]
[354244968,1740363039048,-100.73685122,0.00016438,2]
[354244971,1740363039060,-401.36270348,0.00016438,2]
[354244973,1740363039069,-559.92,0.00016438,2]
[354244975,1740363039078,-859.44,0.00016438,2]
[354244977,1740363039087,-500.0,0.00016438,2]
[354244979,1740363039097,-1339.03,0.00016438,2]
[354244981,1740363039107,-2234.42,0.00016438,2]
[354244983,1740363039116,-530.55895158,0.00016438,2]
[354244985,1740363039132,-1085.50104842,0.00016438,2]
[354244987,1740363039142,-1611.01,0.00016438,2]
[354244990,1740363039151,-1387.42,0.00016438,2]
[354244992,1740363039161,-1035.28,0.00016438,2]
[354244994,1740363039172,-502.26875827,0.00016438,2]
[354244996,1740363039181,-1377.08,0.00016438,2]
[354244998,1740363039190,-1331.45,0.00016438,2]
[354245000,1740363039199,-151.0,0.00016438,2]
[354245002,1740363039208,-500.0,0.00016438,2]
[354245004,1740363039219,-3152.33,0.00016438,2]
[354245006,1740363039227,-154.439446,0.00016438,2]
[354245008,1740363039236,-2020.81,0.00016438,2]
[354245010,1740363039245,-6020.31,0.00016438,2]
[354245012,1740363039255,-955.45,0.00016438,2]
[354245014,1740363039264,-1400.53,0.00016438,2]
[354245016,1740363039273,-692.78,0.00016438,2]